lending/lending_fUSD_20250409
["ID","MTS","AMOUNT","RATE_DAILY","PERIOD"]
[357606103,1744234246849,-150.0,0.00019788,2]
[357606104,1744234246858,-150.0,0.00019788,2]
[357606105,1744234246868,-150.0,0.00019795,2]
[357606106,1744234246877,-150.0,0.00019799,2]
[357606107,1744234247082,-150.0,0.00019818,2]
[357606108,1744234247092,-150.0,0.00019828,2]
[357606109,1744234247102,-150.0,0.00019829,2]
[357606110,1744234247111,-150.0,0.0001984,2]
[357606111,1744234247121,-150.0,0.00019843,2]
[357606112,1744234247130,-150.0,0.00019847,2]
[357606113,1744234247140,-150.0,0.00019851,2]
[357606114,1744234247149,-150.0,0.00019869,2]
[357606115,1744234247158,-150.0,0.00019869,2]
[357606116,1744234247167,-150.0,0.0001987,2]
[357606117,1744234247176,-165.87429171,0.00019871,2]
[357606118,1744234247186,-150.0,0.00019872,2]
[357606119,1744234247195,-150.0,0.00019876,2]
[357606120,1744234247204,-150.0,0.00019881,2]
[357606121,1744234247214,-150.0,0.00019893,2]
[357606122,1744234247223,-150.0,0.00019899,2]
[357606123,1744234247232,-1234.3662,0.000199,2]
[357606124,1744234247242,-318.0,0.000199,2]
[357606125,1744234247251,-310.12932352,0.000199,2]
[357606126,1744234247260,-452.36861202,0.000199,3]
[357606127,1744234247270,-5706.81496659,0.000199,2]
[357606128,1744234247279,-188.61428492,0.000199,2]
[357606129,1744234247288,-861.79155366,0.000199,2]
[357606130,1744234247297,-176.13344557,0.000199,2]
[357606131,1744234247307,-200.0,0.00019903,2]
[357606132,1744234247316,-150.0,0.00019905,2]
[357606133,1744234247325,-5706.81496654,0.0001991,2]
[357606134,1744234247334,-150.0,0.00019911,2]
[357606135,1744234247343,-150.0,0.00019917,2]
[357606136,1744234247353,-150.0,0.00019918,2]
[357606137,1744234247362,-150.0,0.00019919,2]
[357606138,1744234247371,-5706.81496654,0.0001992,2]
[357606139,1744234247380,-150.0,0.0001992,2]
[357606140,1744234247390,-150.0,0.0001992,2]
[357606141,1744234247399,-5706.81496654,0.0001993,2]
[357606142,1744234247409,-150.0,0.0001993,2]
[357606143,1744234247418,-987.80024434,0.00019936,2]
[357606144,1744234247428,-5706.81496654,0.0001994,2]
[357606145,1744234247437,-150.0,0.00019944,2]
[357606146,1744234247446,-150.0,0.00019944,2]
[357606147,1744234247457,-3223.48,0.00019945,14]
[357606148,1744234247466,-5706.81496654,0.0001995,2]
[357606149,1744234247475,-5706.81496654,0.0001996,2]
[357606150,1744234247484,-5706.81496654,0.0001997,2]
[357606151,1744234247493,-157.04226806,0.00019973,2]
[357606152,1744234247503,-403.44864785,0.00019973,2]
[357606153,1744234247511,-500.16322308,0.00019973,2]
[357606154,1744234247520,-500.0,0.00019973,2]
[357606155,1744234247530,-500.0,0.00019973,2]
[357606156,1744234247539,-500.0,0.00019973,2]
[357606157,1744234247548,-500.0,0.00019973,2]
[357606158,1744234247557,-500.0,0.00019973,2]
[357606159,1744234247566,-5706.81496654,0.0001998,2]
[357606160,1744234247575,-155666.6004836,0.00019986,2]
[357606161,1744234247584,-3359.2137778,0.00019986,2]
[357606162,1744234247593,-787.3686635,0.00019986,2]
[357606163,1744234247603,-11243.7612237,0.00019986,2]
[357606164,1744234247612,-6966.6698126,0.00019986,2]
[357606165,1744234247623,-200.0,0.00019988,2]
[357606166,1744234247632,-5706.81496654,0.0001999,2]
[357606167,1744234247642,-150.0,0.00019999,2]
[357606168,1744234247651,-150.0,0.00019999,2]
[357606169,1744234247660,-150.0,0.00019999,2]
[357606170,1744234247670,-150.0,0.00019999,2]
[357606171,1744234247679,-150.0,0.00019999,2]
[357606172,1744234247688,-150.0,0.00019999,2]
[357606173,1744234247697,-150.0,0.00019999,2]
[357606174,1744234247706,-150.0,0.00019999,2]
[357606175,1744234247715,-150.0,0.00019999,2]
[357606176,1744234247724,-150.0,0.00019999,2]
[357606177,1744234247733,-150.0,0.00019999,2]
[357606178,1744234247742,-150.0,0.00019999,2]
[357606179,1744234247752,-150.0,0.00019999,2]
[357606180,1744234247761,-150.0,0.00019999,2]
[357606181,1744234247770,-150.0,0.00019999,2]
[357606182,1744234247780,-150.0,0.00019999,2]
[357606183,1744234247789,-150.0,0.00019999,2]
[357606184,1744234247799,-436555.14392652,0.0002,2]
[357606185,1744234247826,-7790.0172515,0.0002,2]
[357606186,1744234247837,-23900.0,0.0002,2]
[357606187,1744234247877,-20.73247558,0.0002,2]
[357606188,1744234247888,-1006.68,0.0002,2]
[357606189,1744234247899,-930.36,0.0002,2]
[357606190,1744234247910,-1073.5,0.0002,2]
[357606191,1744234247921,-546.38440035,0.0002,2]
[357606192,1744234247932,-972.78559965,0.0002,2]
[357606193,1744234248043,-4071.46576798,0.00017316,2]
[357606194,1744234248081,-877.97148044,0.00017316,2]
[357606195,1744234248111,-4164.4,0.00017316,2]
[357606196,1744234318174,-10501.56405251,0.00017316,2]
[357606197,1744234318203,-19615.40130093,0.00017747,2]
[357606198,1744234332270,-26019.4128069,0.0002,4]
[357606199,1744234339802,-19615.40130093,0.00018177,2]
[357606200,1744234339831,-19615.40130093,0.00018608,2]
[357606201,1744234339858,-1000.0,0.00018814,2]
[357606202,1744234339885,-150.0,0.0001894,2]
[357606203,1744234339913,-158.42242407,0.00018974,2]
[357606204,1744234339940,-150.0,0.00018988,2]
[357606205,1744234339967,-1938.43,0.00019009,2]
[357606206,1744234339994,-1927.8,0.00019009,2]
[357606207,1744234340024,-150.0,0.00019019,2]
[357606208,1744234340053,-1000.0,0.00019036,2]
[357606209,1744234340082,-19615.40130093,0.00019039,2]
[357606210,1744234340110,-19615.40130093,0.00019469,2]
[357606211,1744234340139,-19615.40130093,0.000199,2]
[357606212,1744234340166,-9739.50665254,0.000199,2]
[357606213,1744234340195,-178.34461862,0.000199,2]
[357606214,1744234340221,-217.30978167,0.000199,2]
[357606215,1744234340249,-816.36644175,0.000199,2]
[357606216,1744234340276,-500.0,0.00019973,2]
[357606217,1744234340305,-500.0,0.00019973,2]
[357606218,1744234340331,-622.07954752,0.00019973,2]
[357606219,1744234340359,-2955.9001731,0.00019986,2]
[357606220,1744234340387,-36479.45569574,0.00019986,2]
[357606221,1744234349114,-180.07225361,0.00014921,2]
[357606222,1744234429976,668.37,0.00026138,120]
[357606223,1744234430231,668.37,0.00028514,120]
[357606224,1744234623616,498.0,0.00032,120]
[357606226,1744234862027,-300.0,0.00014921,2]
[357606227,1744234864182,-519.92774639,0.00014921,2]
[357606228,1744234866011,-150.0,0.00018027,2]
[357606229,1744234867853,-227.30653961,0.00018027,2]
[357606230,1744234884396,330.0,0.000305,60]
[357606231,1744234912638,170.0,0.0003,30]
[357606232,1744234913533,-15.69346039,0.00018027,2]
[357606233,1744234913557,-150.0,0.0001878,2]
[357606234,1744234913581,-349.52598013,0.00018795,2]
[357606235,1744235025591,353.0,0.0003,30]
[357606236,1744235041682,353.0,0.0003,30]
[357606237,1744235055781,491.0,0.0003,30]
[357606240,1744235068806,488.0,0.0003,30]
[357606243,1744235101471,249.0,0.0003,30]
[357606244,1744235118266,248.88,0.0003,30]
[357606245,1744235129667,184.0,0.0003,30]
[357606246,1744235154082,205.57771502,0.0003,30]
[357606247,1744235390211,-151.0,0.0001654,2]
[357606248,1744235432105,-1013.90007998,0.0001654,2]
[357606249,1744235432167,-500.46992002,0.0001654,2]
[357606250,1744235432176,-3661.51,0.00018391,2]
[357606251,1744235432185,-1178.94,0.00018477,2]
[357606252,1744235432194,-23900.0,0.00018503,2]
[357606253,1744235432203,-205.99,0.00018503,2]
[357606254,1744235432213,-316.01,0.00018673,2]
[357606255,1744235432223,-171.78,0.00018684,2]
[357606256,1744235432232,-6270.40401987,0.00018795,2]
[357606257,1744235432242,-5572.03,0.00018795,2]
[357606258,1744235432251,-161.96,0.00018795,2]
[357606259,1744235432260,-1665.37,0.00018803,2]
[357606260,1744235432269,-1751.5,0.00018808,2]
[357606261,1744235432279,-1000.0,0.00018811,2]
[357606262,1744235432288,-12835.08,0.00018823,2]
[357606263,1744235432298,-989.4,0.00018825,2]
[357606264,1744235432307,-1026.82,0.0001883,2]
[357606265,1744235432316,-405.0,0.00018833,2]
[357606266,1744235432325,-250.0,0.00018834,2]
[357606267,1744235432334,-200.0,0.00018837,7]
[357606268,1744235432343,-500.0,0.00018843,2]
[357606269,1744235432352,-200.0,0.00018848,2]
[357606270,1744235432361,-2631.19,0.0001886,2]
[357606271,1744235432370,-200.0,0.00018998,2]
[357606272,1744235432380,-250.0,0.00019,2]
[357606273,1744235432389,-284.8494834,0.00019,2]
[357606274,1744235432398,-190.72,0.00019009,2]
[357606275,1744235432407,-668.37,0.00019009,2]
[357606276,1744235432417,-200.0,0.00019042,2]
[357606277,1744235432430,-314.94,0.00019339,2]
[357606278,1744235432439,-5398.45,0.00019339,2]
[357606279,1744235432449,-499.99,0.00019339,2]
[357606280,1744235432458,-3259.96,0.00019339,2]
[357606281,1744235432469,-295.44,0.00019339,2]
[357606282,1744235432478,-651.27,0.00019339,2]
[357606283,1744235432488,-9999.99,0.00019339,2]
[357606284,1744235432497,-433.26376291,0.00019339,2]
[357606285,1744235432540,-386.46623709,0.00019339,2]
[357606286,1744235432550,-999.99,0.00019339,2]
[357606287,1744235432559,-272.11553091,0.00019339,2]
[357606297,1744235438217,-481.18801337,0.00018299,2]
[357606298,1744235438517,-842.15014263,0.00018299,2]
[357606299,1744235438527,-302.30446909,0.00019339,2]
[357606300,1744235438538,-2638.34,0.00019339,2]
[357606301,1744235438549,-150.99,0.00019339,2]
[357606302,1744235438559,-171.4388,0.00019808,2]
[357606303,1744235438569,-1982.18416043,0.00019873,2]
[357606304,1744235438580,-1982.18416042,0.00019876,2]
[357606305,1744235438590,-1982.18416042,0.00019879,2]
[357606306,1744235438601,-1982.18416042,0.00019882,2]
[357606307,1744235438611,-1982.18416042,0.00019885,2]
[357606308,1744235438621,-1982.18416042,0.00019888,2]
[357606309,1744235438632,-1982.18416042,0.00019891,2]
[357606310,1744235438642,-1982.18416042,0.00019894,2]
[357606311,1744235438653,-1982.18416042,0.00019897,2]
[357606312,1744235438663,-500.0,0.00019899,2]
[357606313,1744235438674,-464.02750877,0.00019899,2]
[357606314,1744235438685,-500.0,0.00019899,2]
[357606315,1744235438695,-500.0,0.00019899,2]
[357606316,1744235438706,-2487.2381,0.000199,2]
[357606318,1744235438716,-266.83495689,0.000199,2]
[357606320,1744235438727,-248.1034588,0.000199,2]
[357606322,1744235438737,-19851.75200922,0.000199,2]
[357606324,1744235438750,-18609.17380999,0.000199,2]
[357606326,1744235438762,-1072.35,0.000199,2]
[357606328,1744235438774,-1030.0,0.000199,2]
[357606330,1744235438787,-25286.05341418,0.000199,2]
[357606332,1744235438797,-217.30978166,0.000199,2]
[357606334,1744235438807,-182.66759586,0.000199,2]
[357606336,1744235438817,-1982.18416042,0.000199,2]
[357606338,1744235438828,-544.2442945,0.000199,2]
[357606340,1744235438838,-13790.28817188,0.000199,2]
[357606342,1744235438848,-9491.9771646,0.00019986,2]
[357606344,1744235438857,-5118.6177737,0.00019986,2]
[357606346,1744235438867,-9101.7905025,0.00019986,2]
[357606348,1744235438877,-1141.7935761,0.00019986,2]
[357606350,1744235438887,-197842.9219502,0.00019986,2]
[357606352,1744235438896,-3779.1631439,0.00019986,2]
[357606354,1744235438906,-150.0,0.00019999,2]
[357606356,1744235438916,-150.0,0.00019999,2]
[357606358,1744235438925,-150.0,0.00019999,2]
[357606360,1744235438935,-150.0,0.00019999,2]
[357606362,1744235438946,-150.0,0.00019999,2]
[357606363,1744235438956,-150.0,0.00019999,2]
[357606365,1744235438966,-150.0,0.00019999,2]
[357606366,1744235438976,-150.0,0.00019999,2]
[357606367,1744235438986,-150.0,0.00019999,2]
[357606368,1744235438997,-150.0,0.00019999,2]
[357606369,1744235439007,-150.0,0.00019999,2]
[357606370,1744235439018,-150.0,0.00019999,2]
[357606371,1744235439028,-150.0,0.00019999,2]
[357606372,1744235439038,-543.0,0.0002,2]
[357606373,1744235439048,-311727.08251098,0.0002,2]
[357606374,1744235439058,-1365960.43607531,0.0002,2]
[357606375,1744235439071,-41128.00180814,0.0002,2]
[357606376,1744235439452,-7918.61196079,0.0002,2]
[357606381,1744235440383,-341.49861762,0.0002,2]
[357606382,1744235440687,-86469.40000043,0.0002,2]
[357606386,1744235440861,-173.21531811,0.0002,2]
[357606395,1744235443270,-500.45,0.00019986,2]
[357606397,1744235443339,-5787.6603119,0.00019986,2]
[357606398,1744235443350,-18874.55814903,0.0002,2]
[357606399,1744235443473,-113011.24022548,0.0002,2]
[357606400,1744235443538,-1300.0,0.0002,2]
[357606449,1744235453534,-156.05154131,0.00019886,2]
[357606450,1744235453544,-6564222.69400979,0.0002,2]
[357606451,1744235453553,-254.43867818,0.0002,2]
[357606452,1744235453563,-243.26320691,0.0002,2]
[357606453,1744235453573,-250.0,0.0002,2]
[357606454,1744235453582,-250.0,0.0002,2]
[357606455,1744235453592,-250.0,0.0002,2]
[357606456,1744235453601,-250.0,0.0002,2]
[357606457,1744235453611,-94773.12368267,0.0002,2]
[357606458,1744235453621,-250.0,0.0002,2]
[357606459,1744235453630,-250.0,0.0002,2]
[357606460,1744235453639,-250.0,0.0002,2]
[357606461,1744235453649,-250.0,0.0002,2]
[357606462,1744235453659,-94773.12368267,0.0002,2]
[357606463,1744235453668,-250.0,0.0002,2]
[357606464,1744235453677,-250.0,0.0002,2]
[357606465,1744235453687,-250.0,0.0002,2]
[357606466,1744235453697,-250.0,0.0002,2]
[357606467,1744235453707,-250.0,0.0002,2]
[357606468,1744235453716,-250.0,0.0002,2]
[357606469,1744235453726,-356.2,0.0002,2]
[357606470,1744235453736,-284.8494834,0.0002,2]
[357606471,1744235453745,-151.34,0.0002,2]
[357606472,1744235453754,-151.34,0.0002,2]
[357606473,1744235453763,-151.34,0.0002,2]
[357606474,1744235453772,-151.34,0.0002,2]
[357606475,1744235453782,-151.34,0.0002,2]
[357606476,1744235453791,-151.34,0.0002,2]
[357606477,1744235453801,-151.34,0.0002,2]
[357606478,1744235453811,-151.34,0.0002,2]
[357606479,1744235453820,-151.34,0.0002,2]
[357606480,1744235453829,-151.34,0.0002,2]
[357606481,1744235453838,-151.34,0.0002,2]
[357606482,1744235453847,-151.34,0.0002,2]
[357606483,1744235453856,-151.34,0.0002,2]
[357606484,1744235453865,-151.34,0.0002,2]
[357606485,1744235453875,-151.34,0.0002,2]
[357606486,1744235453884,-151.34,0.0002,2]
[357606487,1744235453893,-151.34,0.0002,2]
[357606488,1744235453903,-151.34,0.0002,2]
[357606489,1744235453912,-151.34,0.0002,2]
[357606490,1744235453922,-151.34,0.0002,2]
[357606491,1744235453931,-151.34,0.0002,2]
[357606492,1744235453941,-151.34,0.0002,2]
[357606493,1744235453950,-151.34,0.0002,2]
[357606494,1744235453959,-151.34,0.0002,2]
[357606495,1744235453968,-151.34,0.0002,2]
[357606496,1744235453978,-151.34,0.0002,2]
[357606497,1744235453987,-151.34,0.0002,2]
[357606498,1744235453996,-151.34,0.0002,2]
[357606499,1744235454005,-151.34,0.0002,2]
[357606500,1744235454015,-151.34,0.0002,2]
[357606501,1744235454024,-151.34,0.0002,2]
[357606502,1744235454033,-151.34,0.0002,2]
[357606503,1744235454043,-300.0,0.00020152,2]
[357606504,1744235454052,-166.67,0.00020227,2]
[357606505,1744235454062,-250.0,0.00020359,2]
[357606506,1744235454071,-161.96,0.00020361,2]
[357606507,1744235454080,-207.4,0.00020367,2]
[357606508,1744235454090,-151.34,0.00020397,2]
[357606509,1744235454099,-150.0,0.00020406,2]
[357606510,1744235454108,-87898.62495099,0.00020407,2]
[357606511,1744235454117,-351.54465372,0.0002069,2]
[357606512,1744235454126,-500.0,0.0002069,2]
[357606513,1744235454136,-500.0,0.0002069,2]
[357606514,1744235454145,-1669.02286468,0.00021,2]
[357606515,1744235454154,-300.0,0.00021,2]
[357606516,1744235454163,-1665.37,0.00021067,2]
[357606517,1744235454173,-1000.0,0.00021162,2]
[357606518,1744235454183,-668.37,0.00021386,2]
[357606519,1744235454192,-150.0,0.000215,2]
[357606520,1744235454201,-226.31624698,0.0002151,2]
[357606521,1744235454210,-300.0,0.00021521,2]
[357606522,1744235454219,-180.91,0.00021603,2]
[357606523,1744235454229,-180.91,0.00021639,2]
[357606524,1744235454238,-1914.2157001,0.0002167,2]
[357606525,1744235454247,-180.91,0.00021675,2]
[357606526,1744235454256,-180.91,0.00021711,2]
[357606527,1744235454266,-215.0738,0.00021736,2]
[357606528,1744235454275,-2896.55412606,0.00021788,2]
[357606529,1744235454285,-177.9,0.00021811,2]
[357606530,1744235454294,-250.0,0.0002189,2]
[357606531,1744235454303,-161.96,0.00021927,2]
[357606532,1744235454313,-168.1,0.00022251,2]
[357606533,1744235454322,-200.0,0.00023,2]
[357606534,1744235454331,-350.0,0.00023,2]
[357606535,1744235454341,-223.0315306,0.00023105,2]
[357606536,1744235454350,-266.83495689,0.00023142,2]
[357606537,1744235454359,-1665.37,0.00023331,2]
[357606538,1744235454368,-248.1034588,0.00023462,2]
[357606539,1744235454377,-161.96,0.00023493,2]
[357606540,1744235454387,-1000.0,0.00023513,2]
[357606541,1744235454396,-500.0,0.00023726,2]
[357606542,1744235454406,-668.37,0.00023762,2]
[357606543,1744235454415,-527.66,0.00023836,2]
[357606544,1744235454424,-1696.12449133,0.00024,2]
[357606545,1744235454437,-168.1,0.00024087,2]
[357606546,1744235454445,-231.28369723,0.00024474,2]
[357606547,1744235454455,-1000.0,0.00024658,2]
[357606548,1744235454463,-151.34,0.0002479,2]
[357606549,1744235454474,-342.06,0.00024799,2]
[357606550,1744235454483,-151.0,0.000248,7]
[357606551,1744235454492,-151.0,0.000248,7]
[357606552,1744235454503,-151.0,0.000248,7]
[357606553,1744235454513,-151.0,0.000248,7]
[357606554,1744235454523,-151.0,0.000248,7]
[357606555,1744235454532,-151.0,0.000248,7]
[357606556,1744235454541,-151.0,0.000248,7]
[357606557,1744235454551,-151.0,0.000248,7]
[357606558,1744235454687,-151.0,0.000248,7]
[357606559,1744235454697,-151.0,0.000248,7]
[357606560,1744235454707,-151.0,0.000248,7]
[357606561,1744235454716,-443.216188,0.000248,7]
[357606562,1744235454725,-443.216188,0.000248,7]
[357606563,1744235454734,-151.0,0.000248,7]
[357606564,1744235454743,-380607.171888,0.000248,2]
[357606565,1744235454752,-151.34,0.0002489,2]
[357606566,1744235454761,-151.34,0.0002489,2]
[357606567,1744235454770,-150.0,0.00024899,2]
[357606568,1744235454781,-153.638082,0.000249,7]
[357606569,1744235454790,-151.0,0.000249,7]
[357606570,1744235454799,-151.0,0.000249,7]
[357606571,1744235454808,-151.0,0.000249,7]
[357606572,1744235454817,-227.995112,0.000249,7]
[357606573,1744235454826,-151.0,0.000249,7]
[357606574,1744235454835,-151.0,0.000249,7]
[357606575,1744235454845,-151.0,0.000249,7]
[357606576,1744235454854,-249.450042,0.000249,7]
[357606577,1744235454863,-151.0,0.000249,7]
[357606578,1744235454871,-443.216188,0.000249,7]
[357606579,1744235454880,-443.216188,0.000249,7]
[357606580,1744235454889,-151.0,0.000249,7]
[357606581,1744235454898,-435665.713805,0.000249,2]
[357606582,1744235454907,-200.0,0.00025,2]
[357606583,1744235454915,-1522.88741964,0.00025,2]
[357606584,1744235454924,-400.0,0.00025,2]
[357606585,1744235454933,-161.96,0.0002506,2]
[357606586,1744235454942,-3050.0,0.000252,2]
[357606587,1744235454951,-280.0,0.000253,10]
[357606588,1744235454961,-872.89554,0.00025452,7]
[357606589,1744235454970,-872.89554,0.00025452,7]
[357606590,1744235454979,-1665.37,0.00025595,2]
[357606591,1744235454988,-19999.99,0.00025786,2]
[357606592,1744235454997,-6500.82,0.00025786,2]
[357606593,1744235455006,-151.0,0.00025786,7]
[357606594,1744235455015,-151.0,0.00025786,7]
[357606595,1744235455024,-151.0,0.00025786,7]
[357606596,1744235455034,-151.0,0.00025786,7]
[357606597,1744235455044,-239.84119403,0.00025843,2]
[357606598,1744235455053,-1000.0,0.00025865,2]
[357606599,1744235455063,-1178.94,0.00025868,2]
[357606600,1744235455072,-168.1,0.00025924,2]
[357606601,1744235455082,-4433.65,0.00026,2]
[357606602,1744235455091,-5558.0,0.000261,3]
[357606603,1744235455100,-151.0,0.00026133,7]
[357606604,1744235455111,-177.806214,0.00026133,7]
[357606605,1744235455121,-616.294201,0.00026133,7]
[357606606,1744235455130,-616.294201,0.00026133,7]
[357606607,1744235455140,-163.127945,0.00026133,7]
[357606608,1744235455149,-163.127945,0.00026133,7]
[357606609,1744235455159,-151.0,0.00026133,7]
[357606610,1744235455169,-151.0,0.00026133,7]
[357606611,1744235455178,-151.0,0.00026133,7]
[357606612,1744235455188,-151.0,0.00026133,7]
[357606613,1744235455197,-151.0,0.00026133,7]
[357606614,1744235455207,-151.0,0.00026133,7]
[357606615,1744235455218,-203.198307,0.00026133,7]
[357606616,1744235455228,-151.0,0.00026133,7]
[357606617,1744235455237,-203.198307,0.00026133,7]
[357606618,1744235455246,-415.326059,0.00026133,7]
[357606619,1744235455256,-415.326059,0.00026133,7]
[357606620,1744235455266,-265.360149,0.00026133,7]
[357606621,1744235455275,-265.360149,0.00026133,7]
[357606622,1744235455284,-322.127338,0.00026133,7]
[357606623,1744235455294,-322.127338,0.00026133,7]
[357606624,1744235455303,-151.0,0.00026133,7]
[357606625,1744235455313,-151.0,0.00026133,7]
[357606626,1744235455322,-151.0,0.00026133,7]
[357606627,1744235455331,-262.683564,0.00026133,7]
[357606628,1744235455340,-151.0,0.00026133,7]
[357606629,1744235455349,-151.0,0.00026133,7]
[357606630,1744235455358,-151.0,0.00026133,7]
[357606631,1744235455368,-5323.57417043,0.00026135,2]
[357606632,1744235455377,-151.0,0.00026135,7]
[357606633,1744235455387,-342.06,0.00026169,2]
[357606634,1744235455396,-376.27844952,0.00026169,2]
[357606635,1744235455406,-1000.0,0.00026169,2]
[357606636,1744235455415,-266.83495689,0.00026384,2]
[357606637,1744235455426,-161.96,0.00026626,2]
[357606638,1744235455439,-1286.0,0.00026826,2]
[357606639,1744235455449,-2044.0,0.00026826,2]
[357606640,1744235455458,-599.401,0.00026826,2]
[357606641,1744235455467,-1326.0,0.00026826,2]
[357606642,1744235455479,-1436.0,0.00026826,2]
[357606643,1744235455488,-791.0,0.00026826,2]
[357606644,1744235455498,-907.0,0.00026826,2]
[357606645,1744235455508,-1278.0,0.00026826,2]
[357606646,1744235455517,-550.709,0.00026826,2]
[357606647,1744235455527,-4143.0,0.00026826,2]
[357606648,1744235455536,-3958.0,0.00026826,2]
[357606649,1744235455545,-155.19,0.00026826,2]
[357606650,1744235455554,-904.153,0.00026826,2]
[357606651,1744235455564,-1120.0,0.00026826,2]
[357606652,1744235455573,-150.0,0.00026826,2]
[357606653,1744235455583,-162.69,0.00026849,2]
[357606654,1744235455593,-159.41,0.00026849,2]
[357606655,1744235455602,-626.7,0.00026849,2]
[357606656,1744235455612,-5558.0,0.000269,5]
[357606657,1744235455621,-250.0,0.00027,2]
[357606658,1744235455630,-1405.79374103,0.00027,14]
[357606659,1744235455640,-450.0,0.00027,2]
[357606660,1744235455649,-248.1034588,0.00027024,2]
[357606661,1744235455658,-248.71531821,0.00027212,2]
[357606662,1744235455668,-150.0,0.00027397,2]
[357606663,1744235455677,-500.0,0.00027397,2]
[357606664,1744235455686,-500.0,0.00027397,2]
[357606665,1744235455696,-150.0,0.00027397,2]
[357606666,1744235455705,-500.0,0.00027397,2]
[357606667,1744235455714,-150.0,0.00027397,2]
[357606668,1744235455723,-500.0,0.00027397,2]
[357606669,1744235455732,-150.0,0.00027397,2]
[357606670,1744235455741,-150.0,0.00027397,2]
[357606671,1744235455750,-150.0,0.00027397,2]
[357606672,1744235455759,-500.0,0.00027397,2]
[357606673,1744235455768,-500.0,0.00027397,2]
[357606674,1744235455777,-163.72190173,0.00027397,2]
[357606675,1744235455786,-4648.0,0.00027397,2]
[357606676,1744235455796,-500.0,0.00027397,2]
[357606677,1744235455805,-500.0,0.00027397,2]
[357606678,1744235455814,-500.0,0.00027397,2]
[357606679,1744235455823,-299.70169523,0.00027397,2]
[357606680,1744235455832,-500.0,0.00027397,2]
[357606681,1744235455841,-150.0,0.00027397,2]
[357606682,1744235455851,-500.0,0.00027397,2]
[357606683,1744235455863,-150.0,0.00027397,2]
[357606684,1744235455873,-150.0,0.00027397,2]
[357606685,1744235455882,-500.0,0.00027397,2]
[357606686,1744235455891,-500.0,0.00027397,2]
[357606687,1744235455900,-500.0,0.00027397,2]
[357606688,1744235455909,-544.0,0.00027397,2]
[357606689,1744235455918,-500.0,0.00027397,2]
[357606690,1744235455927,-500.0,0.00027397,2]
[357606691,1744235455936,-500.0,0.00027397,2]
[357606692,1744235455945,-500.0,0.00027397,2]
[357606693,1744235455954,-150.0,0.00027397,2]
[357606694,1744235455963,-500.0,0.00027397,2]
[357606695,1744235455972,-500.0,0.00027397,2]
[357606696,1744235455981,-431.98322223,0.00027397,2]
[357606697,1744235455990,-500.0,0.00027397,2]
[357606698,1744235455999,-438.390124,0.00027397,7]
[357606699,1744235456008,-438.390124,0.00027397,7]
[357606700,1744235456017,-460.0,0.000274,2]
[357606701,1744235456026,-386.0,0.000274,2]
[357606702,1744235456036,-150.0,0.00027424,2]
[357606703,1744235456045,-643.10320481,0.00027424,2]
[357606704,1744235456054,-500.0,0.00027424,2]